bitfinex/quotes_BTCUSD_20220202
["timestamp","ask_amount","ask_price","bid_price","bid_amount"]
[1643760432810,0.52142385,38648.0,38647.0,0.02728568]
[1643760433008,0.52142385,38648.0,38644.0,0.02728568]
[1643760433208,0.76162416,38648.0,38644.0,0.02728568]
[1643760433409,0.94498735,38648.0,38644.0,0.02728568]
[1643760433608,0.94498735,38648.0,38645.0,0.02728568]
[1643760433609,0.76162416,38648.0,38645.0,0.02728568]
[1643760433810,0.76162416,38648.0,38646.0,0.02728568]
[1643760434009,0.76162416,38648.0,38647.0,0.02728568]
[1643760434410,0.76162416,38648.0,38642.0,0.0030105]
[1643760434411,0.86391861,38648.0,38644.0,0.0069895]
[1643760434715,0.27976262,38647.0,38645.0,0.40933913]
[1643760434911,0.27976262,38647.0,38644.0,0.0069895]
[1643760434912,0.06469,38647.0,38644.0,0.38904295]
[1643760435109,0.10152021,38647.0,38644.0,0.38904295]
[1643760435311,0.11191719,38647.0,38644.0,0.39042092]
[1643760435567,0.0517,38646.0,38644.0,0.38343142]
[1643760435768,0.56507262,38645.0,38644.0,0.38343142]
[1643760436166,0.4,38645.0,38644.0,0.00137797]
[1643760436368,0.4,38645.0,38643.0,0.38205345]
[1643760436668,0.4,38645.0,38644.0,0.40934669]
[1643760436868,0.4517,38645.0,38644.0,0.40934845]
[1643760437068,0.64384848,38645.0,38643.0,0.38343145]
[1643760437271,0.55932171,38644.0,38643.0,0.001378]
[1643760437668,0.62401871,38644.0,38640.0,0.0030105]
[1643760437868,0.62401871,38644.0,38642.0,0.00137804]
[1643760438070,0.414697,38644.0,38642.0,0.00137804]
[1643760438469,0.35,38644.0,38642.0,0.00137804]
[1643760438669,0.10722414,38645.0,38642.0,0.00137804]
[1643760438670,0.05552414,38645.0,38642.0,0.00137804]
[1643760438969,0.05552414,38645.0,38641.0,0.00137805]
[1643760438970,0.25744468,38645.0,38641.0,0.00137805]
[1643760440009,0.07426503,38645.0,38639.0,0.0069895]
[1643760440210,0.07426503,38645.0,38641.0,0.00137805]
[1643760440412,0.16898543,38645.0,38641.0,0.00137805]
[1643760441011,0.19119685,38644.0,38641.0,0.00137805]
[1643760441214,0.25589085,38644.0,38639.0,0.0069895]
[1643760441414,0.25589085,38644.0,38641.0,0.00137805]
[1643760442012,0.25202153,38644.0,38641.0,0.00137805]
[1643760442316,0.24459541,38644.0,38641.0,0.00137805]
[1643760442513,0.06082468,38644.0,38639.0,0.0069895]
[1643760442713,0.24386592,38644.0,38641.0,0.00137807]
[1643760442964,0.06082468,38644.0,38641.0,0.00137807]
[1643760443565,0.06082468,38644.0,38639.0,0.0069895]
[1643760443865,0.06082468,38644.0,38641.0,0.00137807]
[1643760444868,0.06082468,38644.0,38639.0,0.0069895]
[1643760445067,0.24601156,38644.0,38641.0,0.00137807]
[1643760445467,0.24438495,38644.0,38641.0,0.00137807]
[1643760445965,0.06082468,38644.0,38639.0,0.0069895]
[1643760446168,0.06082468,38644.0,38641.0,0.00137807]
[1643760447216,0.06082468,38644.0,38641.0,0.1022072]
[1643760447516,0.06082468,38644.0,38641.0,0.32609765]
[1643760448113,0.06082468,38644.0,38641.0,0.00137807]
[1643760448515,0.06082468,38644.0,38639.0,0.0069895]
[1643760448516,0.1850117,38643.0,38639.0,0.0069895]
[1643760448713,0.1850117,38643.0,38641.0,0.00137807]
[1643760449413,0.06082468,38644.0,38641.0,0.00137807]
[1643760449615,0.06082468,38644.0,38638.0,0.0050105]
[1643760449815,0.06082468,38644.0,38640.0,0.00137809]
[1643760450020,0.18390553,38643.0,38640.0,0.00137809]
[1643760450663,0.18329903,38643.0,38640.0,0.00137809]
[1643760450864,0.18329903,38643.0,38639.0,0.27247948]
[1643760451063,0.08200222,38644.0,38640.0,0.00137811]
[1643760451265,0.1996074,38645.0,38640.0,0.00137811]
[1643760451266,0.00552414,38645.0,38640.0,0.00137811]
[1643760452067,0.00552414,38645.0,38639.0,0.27247948]
[1643760452265,0.00552414,38645.0,38641.0,0.00137807]
[1643760452466,0.07021414,38645.0,38641.0,0.00137807]
[1643760453065,0.00552414,38645.0,38641.0,0.00137807]
[1643760453266,0.00552414,38645.0,38639.0,0.27247948]
[1643760453465,0.00552414,38645.0,38641.0,0.00137805]
[1643760453967,0.00552414,38645.0,38639.0,0.26885753]
[1643760454237,0.00552414,38645.0,38639.0,0.36885753]
[1643760454430,0.00552414,38645.0,38643.0,0.08072423]
[1643760455632,0.00552414,38645.0,38638.0,0.012]
[1643760456632,0.20046811,38644.0,38638.0,0.012]
[1643760456832,0.20046811,38644.0,38638.0,0.28674879]
[1643760457431,0.26516989,38644.0,38638.0,0.27674879]
[1643760457632,0.32986789,38644.0,38639.0,0.09886877]
[1643760458071,0.23104954,38648.0,38640.0,0.56507262]
[1643760458072,0.01914625,38648.0,38640.0,0.56507262]
[1643760458270,0.00143312,38646.0,38641.0,0.447894]
[1643760458470,0.01,38645.0,38641.0,0.547894]
[1643760458668,0.01,38645.0,38642.0,0.0517]
[1643760458867,0.01,38645.0,38644.0,0.6104376]
[1643760459066,0.01,38645.0,38644.0,1.34637688]
[1643760459067,0.02915624,38645.0,38644.0,1.34637688]
[1643760459270,0.064669,38658.0,38645.0,0.35]
[1643760459468,0.6879,38665.0,38646.0,0.26677262]
[1643760459669,0.6879,38665.0,38646.0,0.46677262]
[1643760459866,0.6879,38665.0,38646.0,0.3017]
[1643760460268,0.064666,38661.0,38658.0,0.23414051]
[1643760460473,0.064666,38661.0,38658.0,0.09626051]
[1643760460668,0.064666,38661.0,38657.0,0.0517]
[1643760461469,0.01,38660.0,38657.0,0.0517]
[1643760462111,0.005,38660.0,38657.0,0.0517]
[1643760463116,0.00643293,38660.0,38657.0,0.0517]
[1643760464015,0.005,38660.0,38657.0,0.0517]
[1643760464214,0.00643293,38660.0,38657.0,0.0517]
[1643760465017,0.00643293,38660.0,38657.0,0.14841725]
[1643760465217,0.005,38660.0,38657.0,0.14841725]
[1643760465471,0.00643293,38660.0,38658.0,0.064655]
[1643760466270,0.00643293,38660.0,38657.0,0.0517]
[1643760466468,0.005,38660.0,38657.0,0.0517]
[1643760467369,0.005,38660.0,38657.0,0.181001]
[1643760467771,0.005,38660.0,38658.0,0.23099267]
[1643760467972,0.00643293,38660.0,38659.0,0.06465]
[1643760468275,0.00643293,38660.0,38659.0,0.89111912]
[1643760468672,0.00143293,38660.0,38659.0,0.814244]
[1643760468874,0.005,38661.0,38659.0,0.564244]
[1643760469072,0.00643291,38661.0,38659.0,0.21635]
[1643760469317,0.00643291,38661.0,38660.0,0.1]
[1643760469518,0.00643291,38661.0,38659.0,0.11635]
[1643760469916,0.00643291,38661.0,38659.0,0.06465]
[1643760470118,0.005,38661.0,38659.0,0.06465]
[1643760470318,0.0014329,38662.0,38659.0,0.06465]
[1643760470522,0.005,38661.0,38660.0,0.347894]
[1643760470719,0.005,38661.0,38660.0,0.447894]
[1643760471118,0.00112943,38661.0,38660.0,0.75223387]
[1643760471319,0.20543796,38668.0,38660.0,0.75223387]
[1643760471520,0.20543796,38668.0,38661.0,0.07642608]
[1643760471521,0.01030345,38662.0,38661.0,0.07642608]
[1643760471717,0.01030345,38662.0,38661.0,0.1]
[1643760472320,0.00143289,38662.0,38661.0,0.1]
[1643760472619,0.20543796,38668.0,38661.0,0.16465]
[1643760472620,0.00256232,38663.0,38661.0,0.16465]
[1643760473673,0.00112944,38663.0,38661.0,0.16465]
[1643760474673,0.00112944,38663.0,38660.0,0.129294]
[1643760475073,0.00143287,38664.0,38660.0,0.129294]
[1643760475773,0.00143287,38664.0,38661.0,0.2986476]
[1643760475774,0.00887055,38663.0,38661.0,0.2986476]
[1643760475975,0.00887055,38663.0,38661.0,0.39507856]
[1643760476174,0.00887055,38663.0,38662.0,0.347894]
[1643760476373,0.00256232,38664.0,38662.0,0.447894]
[1643760477222,0.00112945,38664.0,38662.0,0.447894]
[1643760477422,0.00887055,38664.0,38663.0,0.4017]
[1643760477621,0.00887055,38664.0,38663.0,1.395494]
[1643760477827,0.00887055,38664.0,38663.0,1.495494]
[1643760478423,0.00112945,38665.0,38663.0,1.495494]
[1643760478625,0.00256229,38665.0,38664.0,0.697894]
[1643760478824,0.00256229,38665.0,38664.0,0.499594]
[1643760479422,0.00143284,38665.0,38664.0,0.499594]
[1643760479621,0.00887055,38666.0,38664.0,0.499594]
[1643760479821,0.00887055,38666.0,38665.0,0.264642]
[1643760479822,0.01030337,38666.0,38665.0,0.264642]
[1643760480025,0.01030337,38666.0,38665.0,0.664236]
[1643760480324,0.01030337,38666.0,38665.0,0.764236]
[1643760480575,0.00143282,38666.0,38665.0,0.764236]
[1643760480776,0.00112945,38667.0,38665.0,0.764236]
[1643760480976,0.00112945,38667.0,38666.0,0.447894]
[1643760481180,0.00256226,38667.0,38666.0,0.499594]
[1643760481377,0.00143281,38667.0,38666.0,0.499594]
[1643760481979,0.00887055,38668.0,38666.0,0.499594]
[1643760482178,0.00887055,38668.0,38667.0,0.31610153]
[1643760482378,0.00143279,38668.0,38667.0,0.81569553]
[1643760482578,0.00143279,38668.0,38667.0,1.17270397]
[1643760483380,0.00887055,38669.0,38667.0,1.17270397]
[1643760483579,0.00030332,38669.0,38668.0,0.397894]
[1643760483782,0.00030332,38669.0,38668.0,0.549594]
[1643760484417,0.01,38670.0,38668.0,0.549594]
[1643760484617,0.01,38670.0,38668.0,0.678861]
[1643760484816,0.01,38670.0,38668.0,0.98565842]
[1643760485416,0.26614333,38676.0,38668.0,0.98565842]
[1643760485617,0.26614333,38676.0,38668.0,0.63776442]
[1643760485818,0.0007491,38674.0,38668.0,0.63776442]
[1643760486222,0.0007491,38674.0,38669.0,0.064633]
[1643760486421,0.01,38673.0,38670.0,0.0517]
[1643760487119,0.01,38673.0,38671.0,0.347894]
[1643760487120,0.0107491,38673.0,38671.0,0.347894]
[1643760487319,0.0107491,38673.0,38672.0,0.1517]
[1643760487521,0.0007491,38673.0,38672.0,0.564224]
[1643760488166,0.215074,38680.0,38672.0,0.564224]
[1643760488167,0.215074,38680.0,38676.0,0.10413052]
[1643760488366,0.183728,38683.0,38676.0,0.10413052]
[1643760488367,0.183728,38683.0,38676.0,0.15583052]
[1643760488567,0.01,38680.0,38677.0,0.064625]
[1643760488769,0.02165355,38678.0,38677.0,0.064625]
[1643760488972,0.02165355,38678.0,38677.0,0.116325]
[1643760489169,0.01,38680.0,38677.0,0.116325]
[1643760489371,0.23002775,38680.0,38677.0,0.116325]
[1643760489669,0.001434,38679.0,38677.0,0.0517]
[1643760490471,0.074629,38680.0,38677.0,0.0517]
[1643760490772,0.011434,38680.0,38677.0,0.0517]
[1643760491376,0.011434,38680.0,38677.0,0.180936]
[1643760491576,0.011434,38680.0,38678.0,0.347894]
[1643760491818,0.01143399,38680.0,38679.0,0.0517]
[1643760492616,0.00143399,38680.0,38679.0,0.116317]
[1643760492817,0.18501933,38688.0,38679.0,0.464211]
[1643760493018,0.064619,38687.0,38684.0,0.29668125]
[1643760493218,0.0194037,38685.0,38684.0,0.29668125]
[1643760493617,0.0194037,38685.0,38684.0,0.34838125]
[1643760494220,0.0194037,38685.0,38684.0,0.52548132]
[1643760494418,0.0194037,38685.0,38684.0,0.44838125]
[1643760494618,0.0194037,38685.0,38684.0,0.0517]
[1643760495867,0.0194037,38685.0,38684.0,0.1517]
[1643760500329,0.0194037,38685.0,38684.0,0.0517]
[1643760500330,0.2694037,38685.0,38684.0,0.0517]
[1643760500524,0.3194037,38685.0,38684.0,0.0517]
[1643760500724,0.3194037,38685.0,38674.0,0.129242]
[1643760500725,0.24344137,38680.0,38674.0,0.129242]
[1643760500926,0.1890933,38679.0,38670.0,0.3765]
[1643760501123,0.24344137,38680.0,38669.0,0.00666644]
[1643760501326,0.24344137,38680.0,38670.0,0.27653864]
[1643760501524,0.00143401,38679.0,38671.0,0.27302627]
[1643760501722,0.1379846,38678.0,38671.0,0.27302627]
[1643760502623,0.1379846,38678.0,38671.0,0.41228027]
[1643760502825,0.00143406,38676.0,38671.0,0.51228027]
[1643760503074,0.00143406,38676.0,38672.0,0.347894]
[1643760503274,0.00143406,38676.0,38673.0,0.1]
[1643760503474,0.01143406,38676.0,38673.0,0.1]
[1643760503675,0.01,38676.0,38673.0,0.1]
[1643760503877,0.01143406,38676.0,38673.0,0.1]
[1643760504276,0.07607006,38676.0,38673.0,0.1]
[1643760504478,0.12607006,38676.0,38671.0,0.01]
[1643760504682,0.18317184,38675.0,38671.0,0.01]
[1643760505078,0.18460592,38675.0,38671.0,0.01]
[1643760505278,0.18073535,38675.0,38671.0,0.01]
[1643760505478,0.18073535,38675.0,38668.0,0.010339]
[1643760505878,0.00143408,38675.0,38668.0,0.010339]
[1643760506080,0.23927512,38676.0,38668.0,0.110339]
[1643760506281,0.00143411,38673.0,38668.0,0.1]
[1643760506481,0.06607511,38673.0,38669.0,0.01]
[1643760507318,0.064641,38673.0,38669.0,0.01]
[1643760507516,0.06607512,38673.0,38668.0,0.1]
[1643760508417,0.064641,38673.0,38668.0,0.1]
[1643760508617,0.00143413,38672.0,38668.0,0.1]
[1643760508818,0.00143413,38672.0,38669.0,0.347894]
[1643760509617,0.064641,38673.0,38669.0,0.347894]
[1643760509820,0.00143413,38672.0,38669.0,0.347894]
[1643760510018,0.00143413,38672.0,38670.0,0.28859804]
[1643760510220,0.00143413,38672.0,38671.0,0.57941656]
[1643760510473,0.00143413,38672.0,38671.0,0.399594]
[1643760510675,0.00143413,38672.0,38671.0,0.499594]
[1643760510871,0.01,38676.0,38671.0,0.499594]
[1643760511072,0.00143411,38673.0,38671.0,0.499594]
[1643760511272,0.00143411,38673.0,38672.0,0.1]
[1643760511473,0.00143411,38673.0,38672.0,0.499594]
[1643760512173,0.01,38676.0,38672.0,0.499594]
[1643760512375,0.00143409,38674.0,38673.0,0.347894]
[1643760512771,0.00143409,38674.0,38673.0,0.1]
[1643760513372,0.01,38676.0,38673.0,0.1]
[1643760513573,0.00127932,38675.0,38673.0,0.1]
[1643760513775,0.00127932,38675.0,38672.0,0.0517]
[1643760514233,0.33452766,38673.0,38668.0,0.1]
[1643760514429,0.33452766,38673.0,38667.0,0.01]
[1643760514430,0.43452766,38673.0,38667.0,0.01]
[1643760514830,0.00127936,38672.0,38667.0,0.005]
[1643760515029,0.20493238,38668.0,38667.0,0.005]
[1643760515229,0.00127936,38672.0,38667.0,0.005]
[1643760515427,0.00127936,38672.0,38666.0,0.005]
[1643760515627,0.12929,38675.0,38666.0,0.005]
[1643760515828,0.00127938,38671.0,38666.0,0.005]
[1643760516027,0.00127938,38671.0,38666.0,0.105]
[1643760516229,0.00127938,38671.0,38669.0,0.09870361]
[1643760516627,0.064647,38670.0,38669.0,0.09870361]
[1643760517027,0.27541058,38670.0,38669.0,0.09870361]
[1643760517428,0.21076358,38670.0,38669.0,0.09870361]
[1643760518068,0.21076358,38670.0,38667.0,0.06464]
[1643760520171,0.21076358,38670.0,38666.0,0.1]
[1643760520370,0.21076358,38670.0,38665.0,0.005]
[1643760520571,0.21378394,38669.0,38665.0,0.005]
[1643760520970,0.63888003,38666.0,38665.0,0.005]
[1643760521370,0.68888003,38666.0,38665.0,0.005]
[1643760521569,0.78383623,38666.0,38665.0,0.005]
[1643760522522,0.78383623,38666.0,38663.0,0.00387057]
[1643760522523,0.83383623,38666.0,38663.0,0.00387057]
[1643760522924,0.19245347,38665.0,38663.0,0.00387057]
[1643760523727,0.064654,38665.0,38663.0,0.00387057]
[1643760524426,0.074654,38665.0,38664.0,0.10479467]
[1643760524826,0.074654,38665.0,38663.0,0.00387057]
[1643760527970,0.01,38665.0,38663.0,0.13315257]
[1643760528170,0.01,38665.0,38664.0,0.347894]
[1643760528369,0.01,38665.0,38664.0,0.447894]
[1643760528570,0.0414079,38668.0,38664.0,0.447894]
[1643760528771,0.0414079,38668.0,38666.0,0.2794617]
[1643760529068,0.21076358,38670.0,38667.0,0.08241139]
[1643760529319,0.21076358,38670.0,38663.0,0.13315257]
[1643760529320,0.26076358,38670.0,38663.0,0.13315257]
[1643760529518,0.22076358,38670.0,38664.0,0.11634]
[1643760530222,0.22076358,38670.0,38666.0,0.29090374]
[1643760530526,0.22076358,38670.0,38663.0,0.13315257]
[1643760530527,0.22076358,38670.0,38663.0,0.00387057]
[1643760530719,0.22076358,38670.0,38667.0,0.36481633]
[1643760531121,0.01,38670.0,38667.0,0.36481633]
[1643760531718,0.01,38670.0,38668.0,0.1]
[1643760531919,0.01,38670.0,38669.0,0.399594]
[1643760532118,0.01,38670.0,38669.0,0.0517]
[1643760532319,0.01,38670.0,38669.0,0.1517]
[1643760532520,0.129276,38676.0,38669.0,0.1517]
[1643760532720,0.00130782,38671.0,38670.0,0.1]
[1643760533770,0.01,38672.0,38670.0,0.1]
[1643760533970,0.01130781,38672.0,38669.0,0.0517]
[1643760534373,0.01130781,38672.0,38669.0,0.116337]
[1643760534973,0.01,38672.0,38669.0,0.116337]
[1643760535175,0.01130781,38672.0,38669.0,0.0517]
[1643760535777,0.07594981,38672.0,38669.0,0.116339]
[1643760536176,0.074642,38672.0,38669.0,0.116339]
[1643760536378,0.07594979,38672.0,38669.0,0.116339]
[1643760536577,0.07594979,38672.0,38671.0,0.38164687]
[1643760536821,0.07594979,38672.0,38671.0,0.48164687]
[1643760537119,0.01130779,38672.0,38671.0,0.48164687]
[1643760537319,0.01,38672.0,38671.0,0.40339545]
[1643760537518,0.00130777,38673.0,38671.0,0.40339545]
[1643760537722,0.00123468,38673.0,38672.0,0.1]
[1643760538518,0.074633,38674.0,38672.0,0.1]
[1643760540671,0.074633,38674.0,38671.0,0.09762625]
[1643760541076,0.01,38674.0,38672.0,0.27812626]
[1643760541274,0.01,38674.0,38673.0,0.58913195]
[1643760541474,0.01,38674.0,38673.0,0.64083195]
[1643760541673,0.01,38674.0,38673.0,0.74083195]
[1643760542076,0.01,38674.0,38673.0,1.06677685]
[1643760542276,0.01,38674.0,38673.0,1.11677685]
[1643760542475,0.11839396,38694.0,38676.0,0.35]
[1643760542675,0.1182,38694.0,38677.0,0.63260593]
[1643760542874,0.1182,38694.0,38677.0,0.80346598]
[1643760543174,0.1182,38694.0,38688.0,0.08776146]
[1643760543377,0.12921803,38697.0,38689.0,0.27997794]
[1643760543574,0.129222,38695.0,38690.0,0.0517]
[1643760544235,0.22023964,38695.0,38690.0,0.1517]
[1643760545027,0.06460714,38694.0,38690.0,0.1517]
[1643760545228,0.06460714,38694.0,38690.0,0.0517]
[1643760545827,0.06535606,38694.0,38690.0,0.0517]
[1643760546829,0.06460714,38694.0,38690.0,0.0517]
[1643760547130,0.0660435,38694.0,38690.0,0.0517]
[1643760547729,0.0760435,38694.0,38690.0,0.0517]
[1643760548181,0.07460714,38694.0,38690.0,0.0517]
[1643760548378,0.0760435,38694.0,38690.0,0.0517]
[1643760549380,0.09572635,38693.0,38690.0,0.0517]
[1643760549577,0.16033535,38693.0,38690.0,0.0517]
[1643760550678,0.06589016,38693.0,38690.0,0.0517]
[1643760551726,0.064609,38693.0,38690.0,0.0517]
[1643760551921,0.06589016,38693.0,38690.0,0.0517]
[1643760553020,0.064609,38693.0,38690.0,0.0517]
[1643760553221,0.06589016,38693.0,38690.0,0.0517]
[1643760554020,0.064609,38693.0,38690.0,0.0517]
[1643760554421,0.06592508,38693.0,38690.0,0.0517]
[1643760554820,0.06592508,38693.0,38690.0,0.1517]
[1643760555220,0.064609,38693.0,38690.0,0.1517]
[1643760555470,0.06592508,38693.0,38690.0,0.1517]
[1643760556471,0.064609,38693.0,38690.0,0.1517]
[1643760556670,0.06592508,38693.0,38690.0,0.1517]
[1643760557270,0.06592508,38693.0,38691.0,0.09641164]
[1643760557670,0.064609,38693.0,38691.0,0.09641164]
[1643760557871,0.064609,38693.0,38690.0,0.1]
[1643760558071,0.22814347,38692.0,38690.0,0.1]
[1643760558471,0.22814347,38692.0,38690.0,0.1517]
[1643760558671,0.22814347,38692.0,38690.0,0.0517]
[1643760559074,0.22607672,38692.0,38690.0,0.0517]
[1643760559325,0.06591723,38693.0,38690.0,0.0517]
[1643760560024,0.064609,38693.0,38690.0,0.0517]
[1643760560325,0.06591723,38693.0,38690.0,0.0517]
[1643760561429,0.06591899,38693.0,38690.0,0.0517]
[1643760562526,0.064609,38693.0,38690.0,0.0517]
[1643760562826,0.06591899,38693.0,38690.0,0.0517]
[1643760563069,0.00130999,38693.0,38690.0,0.0517]
[1643760563272,0.00130999,38693.0,38691.0,0.347894]
[1643760563470,0.00130999,38693.0,38692.0,0.314589]
[1643760563671,0.01,38694.0,38692.0,0.814183]
[1643760563870,0.01,38694.0,38693.0,0.447894]
[1643760564076,0.01130998,38694.0,38693.0,0.447894]
[1643760564270,0.01130998,38694.0,38693.0,0.499594]
[1643760564470,0.00130998,38694.0,38693.0,0.499594]
[1643760564869,0.04152076,38696.0,38693.0,0.499594]
[1643760565070,0.00130957,38695.0,38693.0,0.499594]
[1643760566070,0.01,38696.0,38693.0,0.499594]
[1643760566270,0.01130956,38696.0,38693.0,0.499594]
[1643760566727,0.01130956,38696.0,38695.0,0.39432683]
[1643760566921,0.01130956,38696.0,38695.0,0.79392083]
[1643760567119,0.01130956,38696.0,38695.0,0.89392083]
[1643760567320,0.01,38696.0,38695.0,0.89392083]
[1643760567520,0.00130954,38697.0,38695.0,0.89392083]
[1643760567721,0.00130954,38697.0,38696.0,0.447894]
[1643760567921,0.00130954,38697.0,38696.0,0.499594]
[1643760568524,0.0215114,38701.0,38696.0,0.499594]
[1643760568921,0.0215114,38701.0,38696.0,0.1517]
[1643760569722,0.28416889,38703.0,38698.0,0.064589]
[1643760570027,0.064588,38705.0,38699.0,0.30141203]
[1643760570221,0.67059472,38710.0,38700.0,0.447894]
[1643760570222,0.184682,38708.0,38700.0,0.447894]
[1643760570469,0.184682,38708.0,38700.0,0.1]
[1643760570470,0.01,38706.0,38700.0,0.1]
[1643760571471,0.01,38706.0,38701.0,0.064579]
[1643760572373,0.01,38706.0,38701.0,0.064489]
[1643760572374,0.00137389,38705.0,38701.0,0.064489]
[1643760573375,0.01,38706.0,38701.0,0.164489]
[1643760573576,0.0013739,38705.0,38701.0,0.164489]
[1643760573977,0.0013739,38705.0,38701.0,0.214489]
[1643760574225,0.0013739,38705.0,38701.0,0.153779]
[1643760574619,0.074587,38706.0,38701.0,0.153779]
[1643760574819,0.07780134,38704.0,38701.0,0.053779]
[1643760575019,0.0013739,38705.0,38701.0,0.053779]
[1643760575819,0.01,38706.0,38701.0,0.053779]
[1643760576020,0.00129635,38705.0,38701.0,0.053779]
[1643760576923,0.01,38706.0,38701.0,0.053779]
[1643760577122,0.00129635,38705.0,38701.0,0.053779]
[1643760577521,0.23292886,38705.0,38701.0,0.053779]
[1643760578066,0.23163251,38705.0,38701.0,0.053779]
[1643760578266,0.23292886,38705.0,38701.0,0.053779]
[1643760579269,0.23163251,38705.0,38701.0,0.053779]
[1643760579473,0.23294631,38705.0,38701.0,0.053779]
[1643760579673,0.0013138,38705.0,38701.0,0.053779]
[1643760580471,0.01,38706.0,38701.0,0.053779]
[1643760580671,0.0013138,38705.0,38701.0,0.053779]
[1643760581726,0.01,38706.0,38701.0,0.053779]
[1643760581923,0.0013138,38705.0,38701.0,0.053779]
[1643760582922,0.01,38706.0,38701.0,0.053779]
[1643760583123,0.00130987,38705.0,38701.0,0.053779]
[1643760584126,0.01,38706.0,38701.0,0.053779]
[1643760584325,0.00130987,38705.0,38701.0,0.053779]
[1643760585327,0.01,38706.0,38701.0,0.053779]
[1643760585590,0.00130987,38705.0,38701.0,0.053779]
[1643760585790,0.00130987,38705.0,38700.0,0.139158]
[1643760585989,0.06589887,38705.0,38700.0,0.139158]
[1643760586391,0.06589887,38705.0,38700.0,0.129158]
[1643760586592,0.064589,38705.0,38700.0,0.129158]
[1643760586792,0.00131076,38704.0,38700.0,0.179158]
[1643760587691,0.064589,38705.0,38700.0,0.179158]
[1643760587891,0.00131077,38704.0,38700.0,0.179158]
[1643760589723,0.18264759,38704.0,38700.0,0.05]
[1643760589919,0.00131077,38704.0,38700.0,0.05]
[1643760590120,0.064589,38705.0,38699.0,0.07459]
[1643760590318,0.18358494,38704.0,38699.0,0.12459]
[1643760590518,0.00131057,38704.0,38699.0,0.12459]
[1643760590718,0.18123351,38704.0,38699.0,0.07459]
[1643760590918,0.00131057,38704.0,38699.0,0.07459]
[1643760591121,0.18141165,38704.0,38699.0,0.07459]
[1643760591321,0.064589,38705.0,38699.0,0.07459]
[1643760591520,0.00131058,38703.0,38699.0,0.07459]
[1643760591920,0.00131058,38703.0,38699.0,0.01]
[1643760592522,0.18242686,38704.0,38699.0,0.01]
[1643760592719,0.25717433,38702.0,38699.0,0.01]
[1643760592980,0.25734152,38701.0,38699.0,0.01]
[1643760593276,0.24473569,38701.0,38693.0,0.36041314]
[1643760593476,0.24686228,38701.0,38694.0,0.05]
[1643760593675,0.24701005,38701.0,38694.0,0.15]
[1643760593977,0.00131068,38699.0,38694.0,0.15]
[1643760594175,0.06591168,38699.0,38694.0,0.15]
[1643760594375,0.06579451,38699.0,38694.0,0.05]
[1643760594776,0.06579451,38699.0,38693.0,0.139187]
[1643760594975,0.06448383,38699.0,38693.0,0.139187]
[1643760595178,0.22767979,38698.0,38693.0,0.139187]
[1643760595377,0.22767979,38698.0,38693.0,0.129187]
[1643760595677,0.01,38697.0,38693.0,0.129187]
[1643760596276,0.01131072,38697.0,38693.0,0.129187]
[1643760597323,0.01,38697.0,38693.0,0.129187]
[1643760597522,0.01131071,38697.0,38693.0,0.129187]
[1643760597922,0.03751969,38698.0,38693.0,0.129187]
[1643760598525,0.01,38697.0,38693.0,0.129187]
[1643760599023,0.01,38697.0,38693.0,0.2083657]
[1643760599324,0.01,38697.0,38694.0,0.347894]
[1643760599722,0.01,38697.0,38695.0,0.1]
[1643760599922,0.01,38697.0,38696.0,0.347894]
[1643760600326,0.01,38697.0,38696.0,0.547894]
[1643760600579,0.02017086,38702.0,38696.0,0.677054]
[1643760600772,0.02017086,38702.0,38697.0,0.447894]
[1643760601175,0.02017086,38702.0,38699.0,0.24387043]
[1643760601375,0.21645456,38708.0,38700.0,0.347894]
[1643760601574,0.21645456,38708.0,38699.0,0.29557043]
[1643760601575,0.21645456,38708.0,38706.0,0.27121426]
[1643760601772,0.1861483,38710.0,38706.0,0.27121426]
[1643760601973,0.064579,38709.0,38706.0,0.27121426]
[1643760602573,0.074579,38709.0,38706.0,0.27121426]
[1643760603473,0.07601781,38709.0,38706.0,0.27121426]
[1643760603872,0.07601781,38709.0,38704.0,0.074581]
[1643760604523,0.074579,38709.0,38704.0,0.064581]
[1643760604723,0.00128294,38708.0,38704.0,0.064581]
[1643760604921,0.00128294,38708.0,38706.0,0.2542536]
[1643760605724,0.074579,38709.0,38706.0,0.2542536]
[1643760605921,0.07586194,38709.0,38706.0,0.24982692]
[1643760607022,0.074579,38709.0,38704.0,0.074581]
[1643760607224,0.074579,38709.0,38704.0,0.174581]
[1643760607225,0.07586193,38709.0,38704.0,0.174581]
[1643760607422,0.07586193,38709.0,38704.0,0.164581]
[1643760608073,0.074579,38709.0,38704.0,0.43640152]
[1643760608276,0.074579,38709.0,38704.0,0.54096725]
[1643760608472,0.00131802,38708.0,38704.0,0.54096725]
[1643760609272,0.074579,38709.0,38704.0,0.54096725]
[1643760609674,0.00131803,38708.0,38704.0,0.54096725]
[1643760609873,0.00131803,38708.0,38704.0,0.59266725]
[1643760610075,0.00131803,38708.0,38705.0,0.33824882]
[1643760610274,0.00131803,38708.0,38706.0,0.1]
[1643760610474,0.01,38709.0,38707.0,0.412458]
[1643760610673,0.01,38709.0,38707.0,0.512458]
[1643760610875,0.01,38709.0,38708.0,0.1517]
[1643760610876,0.01131801,38709.0,38708.0,0.1517]
[1643760611073,0.01131801,38709.0,38708.0,0.500121]
[1643760611573,0.00131801,38709.0,38708.0,0.500121]
[1643760611843,0.02038471,38713.0,38709.0,0.064565]
[1643760612043,0.02038471,38713.0,38711.0,0.25166348]
[1643760612244,0.02038471,38713.0,38712.0,0.348421]
[1643760612444,0.02005542,38714.0,38711.0,0.35166348]
[1643760612445,0.01,38714.0,38711.0,0.35166348]
[1643760613244,0.01131004,38714.0,38711.0,0.35166348]
[1643760613447,0.01131004,38714.0,38712.0,0.064565]
[1643760613645,0.01131004,38714.0,38712.0,0.164565]
[1643760614246,0.01,38714.0,38712.0,0.064565]
[1643760614446,0.31350602,38715.0,38709.0,0.1]
[1643760614447,0.31481605,38715.0,38709.0,0.1]
[1643760614647,0.31481605,38715.0,38708.0,0.12913]
[1643760615046,0.014388,38714.0,38706.0,0.07982]
[1643760615247,0.26006706,38708.0,38706.0,0.07982]